Cogmind - Beta 16 @@@ ROGUE MODE // 2025.11.14 @ 21:56:14 Player: C0-2MO Result: Destroyed by P-80 Master with Gamma Rifle Performance ------------- Evolutions (9) 4500 Regions Visited (15) 3000 Robots Destroyed (22) 110 Value Destroyed (459) 459 Prototype IDs (17) 340 Alien Tech Used (6) 1200 Bonus (1700) 1700 TOTAL SCORE: 11309 Bonus ------- Pacifist 200 Entered DSFs 500 Scanned by Researcher 500 Pursued by Intercept 500 Cogmind --------- Core Integrity 0/1850 Matter 255/300 Energy 350/350 System Corruption 2% Temperature Cool (0) Movement Walking (120) Location -1/Command Parts ------- > --- POWER (2) -------- (None) > --- PROPULSION (12) -- Centrium Leg Centrium Leg Centrium Leg Improved Gyrokinetic Inverter > --- UTILITY (9) ------ ECM Suite > --- WEAPON (2) ------- (None) > --- INVENTORY (5) ---- Graviton Reactor Graviton Reactor Layered Light Armor Plating Mini Drone Bay (0/3) Peak State ------------ > --- POWER ------------ Graviton Reactor Graviton Reactor > --- PROPULSION ------- Nuclear Pulse Thruster Nuclear Pulse Thruster Nuclear Pulse Thruster Nuclear Pulse Array Cooled Field Propulsion Drive Field Propulsion Array Diametric Drive Q-thruster Impulse Thruster Array > --- UTILITY ---------- Structural Scanner Enhanced Optical Array Long-range Sensor Array Advanced Signal Interpreter Layered Light Armor Plating Experimental Hacking Suite System Shield Advanced Corruption Screen Mini Drone Bay > --- WEAPON ----------- Nova Cannon Force Lance > --- INVENTORY -------- Graviton Reactor Advanced Coolant Injector Layered Light Armor Plating Chainsword [Rating: 163] Favorites ----------- Power Graviton Reactor Engine Light Ion Engine Power Core Micro Nuclear Core Reactor Graviton Reactor Propulsion Nuclear Pulse Thruster Leg Centrium Leg Hover Unit Backup Propulsion VII Flight Unit Nuclear Pulse Thruster Utility Layered Light Armor Plating Device Structural Scanner Processor Enhanced Optical Array Hackware Advanced Hacking Suite Protection Layered Light Armor Plating Weapon Chainsword Energy Gun Backup Laser VII Energy Cannon Nova Cannon Ballistic Gun Assault Rifle Impact Weapon Flail Slashing Weapon Chainsword Piercing Weapon Force Lance Build | -11 -10 -9 -8 -7 -6 -6 -5 -5 -4 -3 -2 -2 -2 -1 -1 ------- Run | Yrd Mat Mat Mat Fac Fac Ext Fac DSF Fac Res Res Tes Sec Acc Com Slots Evolved 18 | . . 2 2 2 2 . 2 . 2 2 2 . . 2 . Power 1 | . . . . . . . 1 . . . . . . . . Propulsion 10 | . . 2 . 1 1 . 1 . 1 1 1 . . 2 . Utility 7 | . . . 2 1 1 . . . 1 1 1 . . . . Weapon . | . . . . . . . . . . . . . . . . Parts Attached 67 | 2 . 7 3 5 3 . 1 9 4 1 5 12 4 6 5 Power 6 | . . 1 . 1 . . . 1 . . 1 2 . . . Engine 2 | . . 1 . 1 . . . . . . . . . . . Core 1 | . . . . . . . . 1 . . . . . . . Reactor 3 | . . . . . . . . . . . 1 2 . . . Propulsion 24 | . . 5 1 . . . . 4 2 1 3 2 . 2 4 Treads . | . . . . . . . . . . . . . . . . Leg 3 | . . . . . . . . . . . . . . . 3 Wheel . | . . . . . . . . . . . . . . . . Hover 1 | . . . . . . . . . . . . . . . 1 Flight 20 | . . 5 1 . . . . 4 2 1 3 2 . 2 . Utility 28 | . . . 1 4 1 . 1 4 2 . 1 7 3 3 1 Device 10 | . . . . 2 1 . . . 1 . 1 3 . 1 1 Storage . | . . . . . . . . . . . . . . . . Processor 6 | . . . . 1 . . 1 . 1 . . . 2 1 . Hackware 7 | . . . . 1 . . . 4 . . . 1 1 . . Protection 5 | . . . 1 . . . . . . . . 3 . 1 . Artifact . | . . . . . . . . . . . . . . . . Weapon 9 | 2 . 1 1 . 2 . . . . . . 1 1 1 . Energy Gun . | . . . . . . . . . . . . . . . . Energy Cannon 3 | . . . . . 2 . . . . . . . . 1 . Ballistic Gun 2 | 2 . . . . . . . . . . . . . . . Ballistic Cannon . | . . . . . . . . . . . . . . . . Launcher . | . . . . . . . . . . . . . . . . Special Weapon . | . . . . . . . . . . . . . . . . Impact Weapon 1 | . . 1 . . . . . . . . . . . . . Slashing Weapon 2 | . . . 1 . . . . . . . . 1 . . . Piercing Weapon 1 | . . . . . . . . . . . . . 1 . . Special Melee Weapon . | . . . . . . . . . . . . . . . . Unidentified Prototypes 14 | . . . . . 2 . . . 1 . . 4 7 . . Parts Lost 40 | . . 3 3 . . 3 . 1 . 3 5 1 2 18 1 Power 2 | . . . 1 . . 1 . . . . . . . . . Propulsion 16 | . . 2 2 . . . . . . 2 1 . . 8 1 Utility 17 | . . . . . . 2 . 1 . 1 4 1 1 7 . Weapon 5 | . . 1 . . . . . . . . . . 1 3 . Highest Loss Streak 14 | . . 2 2 . . 3 . 1 . 2 5 1 2 14 1 To Critical Strikes . | . . . . . . . . . . . . . . . . Average Backups 2 | . 1 . . . 1 2 2 3 3 3 2 2 5 4 3 Power 1 | . . . . . . 1 1 . . . . 1 3 2 2 Propulsion . | . . . . . . . . 2 3 3 2 . 1 . . Utility . | . . . . . 1 1 1 . . . . . . 1 1 Weapon . | . 1 . . . . . . . . . . . 1 1 . Tool/Special . | . . . . . . . . . . . . . . . . Unused Backups 3 | . . . . . . . . 1 . . . . . 1 1 Power 2 | . . . . . . . . . . . . . . 1 1 Propulsion . | . . . . . . . . . . . . . . . . Utility 1 | . . . . . . . . 1 . . . . . . . Weapon . | . . . . . . . . . . . . . . . . Tool/Special . | . . . . . . . . . . . . . . . . Average Slot Usage (%) 54 | . 14 37 49 63 62 66 41 66 74 63 54 70 78 74 12 Engine 1 | . . 3 3 6 6 6 . . . . . . . . . Core 1 | . . . . . . . . 3 5 4 4 2 . . . Reactor 2 | . . . . . . . . . . . 2 5 8 6 . Leg 1 | . . . . . . . . . . . . . . . 7 Flight 19 | . . 15 25 15 13 13 11 25 29 22 18 28 30 29 . Device 6 | . . . . 11 15 20 5 5 5 6 7 12 13 8 2 Processor 5 | . . . . 5 6 6 5 9 7 9 8 7 5 9 . Hackware 5 | . . . . 6 6 6 5 11 21 14 7 3 4 6 . Protection 3 | . . . 2 7 6 6 5 3 . . . 5 12 6 . Ballistic Gun 2 | . 14 16 9 1 . . . . . . . . . . . Slashing Weapon 2 | . . . 3 7 6 6 5 5 5 4 4 4 3 . . Peak Build Rating 163 | 2 1 8 14 24 31 25 24 77 100 93 92 138 141 163 59 Average Rating 66 | 1 1 3 9 22 24 24 21 61 91 87 86 117 131 142 25 On Entrance 46 | . 2 1 8 13 24 25 19 24 77 93 87 92 130 141 10 Avg Prop Armor Cover (%) 37 | . . . . . . . . . 4 . . . . . 38 Naked Turns 37 | . . . . . . . . . . . . . . . 37 Heaviest Build 74 | 4 2 7 7 10 10 10 6 12 11 12 20 51 51 74 19 Greatest Support 90 | 3 3 15 15 10 10 10 10 43 51 44 60 68 71 84 90 Greatest Overweight (x) 1 | 1 . . . . . . . . . . . . . . 1 Average Overweight (x) . | . . . . . . . . . . . . . . . . Largest Inventory Capacity 5 | 5 5 5 5 5 5 5 5 5 5 5 5 5 5 5 5 Average Capacity 5 | 5 5 5 5 5 5 5 5 5 5 5 5 5 5 5 5 Most Carried 5 | . 1 1 . 1 2 2 2 5 5 5 4 5 5 5 4 Average Carried 2 | . 1 . . . 1 2 2 4 4 4 3 2 5 4 3 Final Capacity 5 | 5 5 5 5 5 5 5 5 5 5 5 5 5 5 5 5 Final Carried 5 | . 1 . . 1 2 2 2 5 5 4 1 5 5 4 4 Class Distribution -------------------- 36% | Sprinter 25% | Mutant 19% | Hacker-Scout 10% | Scout 5% | Hacker-Sprinter 3% | Scavenger-Scout Dominant Class ---------------- Mutant | -10/Materials Mutant | -9/Materials Sprinter | -8/Materials Sprinter | -7/Factory Sprinter | -6/Factory Sprinter | -6/Extension Sprinter | -5/Factory Sprinter | -5/DSF Hacker-Scout | -4/Factory Hacker-Scout | -3/Research Scout | -2/Research Scout | -2/Testing Sprinter | -2/Section 7 Hacker-Scout | -1/Access Mutant | -1/Command Resources | -11 -10 -9 -8 -7 -6 -6 -5 -5 -4 -3 -2 -2 -2 -1 -1 ----------- Run | Yrd Mat Mat Mat Fac Fac Ext Fac DSF Fac Res Res Tes Sec Acc Com Matter Collected 979 | 112 . 106 99 151 10 . . . . 118 18 121 148 85 11 Remotely . | . . . . . . . . . . . . . . . . Salvage Created 699 | . . 129 12 165 12 . . . . . 18 10 214 139 . Parts 56 | . . 15 . 16 4 . . . . . 2 3 9 7 . Haulers Intercepted 2 | . . . . 1 . . . . . . . . . 1 . Recyclers Shooed 2 | . . 2 . . . . . . . . . . . . . Parts Field Recycled . | . . . . . . . . . . . . . . . . Retrieved Matter . | . . . . . . . . . . . . . . . . Parts Self-Destructed . | . . . . . . . . . . . . . . . . Prevented . | . . . . . . . . . . . . . . . . Parts Restored . | . . . . . . . . . . . . . . . . Kills | -11 -10 -9 -8 -7 -6 -6 -5 -5 -4 -3 -2 -2 -2 -1 -1 ------- Run | Yrd Mat Mat Mat Fac Fac Ext Fac DSF Fac Res Res Tes Sec Acc Com Combat Hostiles Destroyed 8 | . . 8 . . . . . . . . . . . . . Guns 8 | . . 8 . . . . . . . . . . . . . Classes Destroyed 6 | . . 1 1 3 . . . . . . . . 1 . . Builder 5 | . . . 1 1 1 . . . . . 1 1 . . . Hauler 2 | . . . . 1 . . . . . . . . . 1 . Recycler 1 | . . . . 1 . . . . . . . . . . . Operator 3 | . . . . 2 . . . . . . . . . 1 . Swarmer 8 | . . 8 . . . . . . . . . . . . . Researcher 3 | . . . . . . . . . . . . . 3 . . Best Kill Streak 8 | . . 8 1 2 1 . . . . . 1 1 1 1 . Combat Bots Only 8 | . . 8 . . . . . . . . . . . . . Max Kills in Single Turn 1 | . . 1 1 1 1 . . . . . 1 1 1 1 . Gunslinging . | . . . . . . . . . . . . . . . . Exploded . | . . . . . . . . . . . . . . . . Melee . | . . . . . . . . . . . . . . . . Uniques/NPCs Destroyed . | . . . . . . . . . . . . . . . . Combat | -11 -10 -9 -8 -7 -6 -6 -5 -5 -4 -3 -2 -2 -2 -1 -1 -------- Run | Yrd Mat Mat Mat Fac Fac Ext Fac DSF Fac Res Res Tes Sec Acc Com Hostile Shots Fired 764 | . 7 69 30 32 . 30 . 1 23 35 33 2 151 229 122 Missed 351 | . 4 30 17 23 . 20 . . 16 15 21 . 65 100 40 Hits 413 | . 3 39 13 9 . 10 . 1 7 20 12 2 86 129 82 Melee 18 | . . . 2 . . . . . . . . . . 16 . Projectile 395 | . 3 39 11 9 . 10 . 1 7 20 12 2 86 113 82 AOE 3 | . . . 1 . . . . . . . . . . 2 . Critical Strikes 15 | . . . . . . . . . 1 . . 1 1 10 2 Damage Taken 8417 | . 41 412 234 90 . 206 . 84 111 353 215 81 1861 2924 1805 Core 2728 | . 31 185 91 52 . 132 . . 46 87 23 . 216 930 935 Absorbed by Shields . | . . . . . . . . . . . . . . . . Redirected to Shielding 103 | . . . 31 3 . 14 . 55 . . . . . . . Regen/Repaired (Parts) 966 | . . . . 8 . . . . . . . . 841 117 . Core Remaining (%) 88 | 100 87 53 83 92 . 84 . 100 96 93 . . 92 . . Volleys Fired 28 | . . 18 . . . . . . . . . . . 9 1 Largest 2 | . . 2 . . . . . . . . . . . 1 2 Hottest 113 | . . 40 . . . . . . . . . . . 113 100 Shots Fired 47 | . . 36 . . . . . . . . . . . 9 2 Gun 38 | . . 36 . . . . . . . . . . . . 2 Cannon 9 | . . . . . . . . . . . . . . 9 . Launcher . | . . . . . . . . . . . . . . . . Special . | . . . . . . . . . . . . . . . . Kinetic 36 | . . 36 . . . . . . . . . . . . . Thermal 11 | . . . . . . . . . . . . . . 9 2 Explosive . | . . . . . . . . . . . . . . . . Electromagnetic . | . . . . . . . . . . . . . . . . Robot Hit Streak 3 | . . 3 . . . . . . . . . . . . 1 Robot Miss Streak 3 | . . 3 . . . . . . . . . . . . 1 Penetration Max . | . . . . . . . . . . . . . . . . Secondary Targets 3 | . . 3 . . . . . . . . . . . . . Max Gunslinging Chain 1 | . . 1 . . . . . . . . . . . . . Shots Hit Robots 45 | . . 17 4 5 1 . . . . 1 1 4 7 4 1 Core Hits 21 | . . 9 . 5 1 . . . . . . . 3 1 2 Critical Kills . | . . . . . . . . . . . . . . . . Critical Parts Destroyed . | . . . . . . . . . . . . . . . . Critical Strikes . | . . . . . . . . . . . . . . . . Melee Attacks 76 | . . 1 10 9 4 . 1 . 2 6 6 7 15 15 . Impact 8 | . . 1 7 . . . . . . . . . . . . Slashing 51 | . . . 3 9 4 . 1 . 2 6 6 7 12 1 . Piercing 17 | . . . . . . . . . . . . . 3 14 . Sneak Attacks 16 | . . . 2 3 1 . . . . 1 1 3 3 2 . Combat Hostiles . | . . . . . . . . . . . . . . . . Follow-up Attacks . | . . . . . . . . . . . . . . . . Damage Inflicted 2401 | . . 220 260 353 82 . . . . 93 83 256 693 314 47 Guns 239 | . . 220 . . . . . . . . . . . . 19 Cannons . | . . . . . . . . . . . . . . . . Explosions . | . . . . . . . . . . . . . . . . Melee 2134 | . . . 260 353 82 . . . . 93 83 256 693 314 . Ramming 28 | . . . . . . . . . . . . . . . 28 Kinetic 220 | . . 220 . . . . . . . . . . . . . Thermal 19 | . . . . . . . . . . . . . . . 19 Explosive . | . . . . . . . . . . . . . . . . Electromagnetic . | . . . . . . . . . . . . . . . . Impact 260 | . . . 260 . . . . . . . . . . . . Slashing 1560 | . . . . 353 82 . . . . 93 83 256 693 . . Piercing 314 | . . . . . . . . . . . . . . 314 . Highest Corruption 2 | . . . . 1 1 1 . . . . . . . . 2 Average Corruption 1 | . . . . 1 1 1 . . . . . . . . 1 Corruption Purged . | . . . . . . . . . . . . . . . . Corruption Blocked 9 | . . . . . . . . . . . . . . 9 . Effects 1 | . . . . . 1 . . . . . . . . . . Message Errors 1 | . . . . . 1 . . . . . . . . . . Overload Shots . | . . . . . . . . . . . . . . . . Overflow Damage 492 | . . . 104 . . . . . . . 43 126 170 49 . Projectiles . | . . . . . . . . . . . . . . . . Explosions . | . . . . . . . . . . . . . . . . Melee 492 | . . . 104 . . . . . . . 43 126 170 49 . Knockbacks 2 | . . . 1 . . . . . . . . . . . 1 Impact 2 | . . . 1 . . . . . . . . . . . 1 Kinetic . | . . . . . . . . . . . . . . . . Secondary . | . . . . . . . . . . . . . . . . Self-Inflicted Damage 12 | . . . . . . . . . . . . . . . 12 Shots . | . . . . . . . . . . . . . . . . Rammed 3 | . . . . . . . . . . . . . . . 3 Targets Rammed 4 | . . . . . . . . . . . . . . . 4 Kicked 1 | . . . . . . . . . . . . . . . 1 Crushed . | . . . . . . . . . . . . . . . . Highest Temperature 290 | . . . . . 274 . . . . . 28 198 199 290 . Average Temperature 105 | . . . . . 137 . . . . . 15 83 129 94 . Received Heat Transfer 645 | . 24 105 72 12 . 36 . . . 27 . 9 117 72 171 Siege Activations . | . . . . . . . . . . . . . . . . Martial Activations . | . . . . . . . . . . . . . . . . Shielding Activations . | . . . . . . . . . . . . . . . . Robots Disrupted . | . . . . . . . . . . . . . . . . Combat Hostiles . | . . . . . . . . . . . . . . . . Robots Corrupted 1 | . . . 1 . . . . . . . . . . . . Combat Hostiles . | . . . . . . . . . . . . . . . . Parts Fried 1 | . . . 1 . . . . . . . . . . . . Impact Corruptions 4 | . . . 4 . . . . . . . . . . . . Robots Melted . | . . . . . . . . . . . . . . . . Combat Hostiles . | . . . . . . . . . . . . . . . . Parts Melted . | . . . . . . . . . . . . . . . . Heat Transferred 37 | . . . . . . . . . . . . . . . 37 Parts Sabotaged . | . . . . . . . . . . . . . . . . Parts Stolen . | . . . . . . . . . . . . . . . . Parts Stripped . | . . . . . . . . . . . . . . . . Power Chain Reactions 1 | . . . . . . . . . . . 1 . . . . Alert | -11 -10 -9 -8 -7 -6 -6 -5 -5 -4 -3 -2 -2 -2 -1 -1 ------- Run | Yrd Mat Mat Mat Fac Fac Ext Fac DSF Fac Res Res Tes Sec Acc Com Maximum Alert Level 3 | . . 1 . . . . . . . . . . 2 3 2 Low Security (%) 61 | 100 100 87 100 100 100 100 100 100 100 100 100 100 35 . . Level 1 13 | . . 12 . . . . . . . . . . 31 63 . Level 2 23 | . . . . . . . . . . . . . 33 27 100 Level 3 1 | . . . . . . . . . . . . . . 9 . Level 4 . | . . . . . . . . . . . . . . . . Level 5 . | . . . . . . . . . . . . . . . . High Security . | . . . . . . . . . . . . . . . . Max Security . | . . . . . . . . . . . . . . . . Peak Influence 791 | . 17 233 105 90 41 12 4 25 169 148 122 106 498 791 675 Initial 473 | . . 2 100 35 39 12 2 5 12 84 69 60 59 292 473 Average 229 | . 4 130 78 62 36 8 2 9 69 112 101 85 287 427 569 Influence Increases 2708 | . 17 328 57 105 8 6 6 30 179 121 130 106 549 769 297 Destroy 0b10 Robot/C 220 | . . 160 . . . . . . . . . . 60 . . Destroy 0b10 Robot/NC 55 | . . . 5 25 5 . . . . . 5 5 . 10 . Destroy Leader 24 | . . 20 . 2 . . . . . . . . . 2 . Successful Hack 258 | . 17 11 4 30 . 6 4 . 10 8 45 32 30 34 27 Select Force Hacks 50 | . . . . . . . . . . . 50 . . . . Disable Machine 120 | . . . . 15 . . . . . . . . 60 45 . Destroy Structure 91 | . . 2 3 3 3 . 2 . 4 8 15 9 9 33 . Partial Spotted 180 | . . . . . . . . 15 15 . 15 15 45 30 45 Lose Combat Pursuer 1710 | . . 135 45 30 . . . 15 150 105 . 45 345 615 225 Influence Decreases 2078 | . 10 97 218 102 61 27 4 13 43 157 146 109 167 516 408 Entered New Map 954 | . . 5 138 42 41 15 4 3 13 77 56 49 47 196 268 Time Decay 712 | . 10 62 50 60 20 10 . . 30 50 40 50 90 110 130 Lost Part 372 | . . 30 30 . . 2 . 10 . 30 50 10 20 180 10 Lost Ally 40 | . . . . . . . . . . . . . 10 30 . Squads Dispatched 46 | . 1 1 4 3 1 . . 1 5 2 3 3 6 10 6 Investigation 26 | . . 1 2 2 1 . . . 3 . 3 2 3 5 4 Extermination 7 | . . . . 1 . . . . . 1 . . 1 2 2 Reinforcement 12 | . 1 . 2 . . . . 1 2 1 . 1 2 2 . Assault . | . . . . . . . . . . . . . . . . Garrison . | . . . . . . . . . . . . . . . . Intercept 1 | . . . . . . . . . . . . . . 1 . Searches Triggered . | . . . . . . . . . . . . . . . . Construction Impeded 1 | . . . . . . . . . . . . 1 . . . Haulers Reinforced . | . . . . . . . . . . . . . . . . Active Scanning Responses . | . . . . . . . . . . . . . . . . Cargo Convoy Interrupts . | . . . . . . . . . . . . . . . . Stealth | -11 -10 -9 -8 -7 -6 -6 -5 -5 -4 -3 -2 -2 -2 -1 -1 --------- Run | Yrd Mat Mat Mat Fac Fac Ext Fac DSF Fac Res Res Tes Sec Acc Com Distress Signals 8 | . 1 1 . . . . . . . . . . 1 5 . Communications Jammed . | . . . . . . . . . . . . . . . . Distress Signals . | . . . . . . . . . . . . . . . . Times Spotted 268 | . 6 24 15 9 . 4 . 1 24 14 12 8 54 61 36 Peak Tracking Total 31 | . 6 13 11 5 . 4 . 1 13 8 11 7 19 31 18 Tactical Retreats 30 | . . 2 1 1 . . . 1 2 3 . 1 5 8 6 ECM-based Alert Blocks 17 | . . . . . . . . . . . . . . . 17 Traps | -11 -10 -9 -8 -7 -6 -6 -5 -5 -4 -3 -2 -2 -2 -1 -1 ------- Run | Yrd Mat Mat Mat Fac Fac Ext Fac DSF Fac Res Res Tes Sec Acc Com Traps Triggered 3 | . . . . . . . . . 1 . . . 2 . . Indirectly . | . . . . . . . . . . . . . . . . Trap Hack Attempts . | . . . . . . . . . . . . . . . . Triggered . | . . . . . . . . . . . . . . . . Disarmed . | . . . . . . . . . . . . . . . . Reprogrammed . | . . . . . . . . . . . . . . . . Reused . | . . . . . . . . . . . . . . . . Traps Extracted . | . . . . . . . . . . . . . . . . Installed . | . . . . . . . . . . . . . . . . Triggered . | . . . . . . . . . . . . . . . . Machines | -11 -10 -9 -8 -7 -6 -6 -5 -5 -4 -3 -2 -2 -2 -1 -1 ---------- Run | Yrd Mat Mat Mat Fac Fac Ext Fac DSF Fac Res Res Tes Sec Acc Com Machines Disabled 8 | . . . . 1 . . . . . . . . 4 3 . Max in Single Turn 1 | . . . . 1 . . . . . . . . 1 1 . Garrison Access 1 | . . . . . . . . . . . . . . 1 . Machines Repaired . | . . . . . . . . . . . . . . . . Machines Dismantled . | . . . . . . . . . . . . . . . . Machines Sabotaged . | . . . . . . . . . . . . . . . . Overloaded Fab Kills 4 | . . . . . . . . . . . 4 . . . . Hacking | -11 -10 -9 -8 -7 -6 -6 -5 -5 -4 -3 -2 -2 -2 -1 -1 --------- Run | Yrd Mat Mat Mat Fac Fac Ext Fac DSF Fac Res Res Tes Sec Acc Com Machines Accessed 48 | . 2 4 3 3 1 1 1 . 3 3 3 3 7 9 5 Terminals 37 | . 2 3 3 2 1 1 1 . 3 3 2 3 5 6 2 Fabricators 1 | . . . . . . . . . . . 1 . . . . Repair Stations 8 | . . . . 1 . . . . . . . . 2 2 3 Recycling Units . | . . . . . . . . . . . . . . . . Scanalyzers 1 | . . 1 . . . . . . . . . . . . . Garrison Access 1 | . . . . . . . . . . . . . . 1 . Total Hacks 125 | . 9 12 8 7 3 1 1 . 12 11 6 13 12 21 9 Successful 57 | . 6 8 2 5 . 1 1 . 7 6 4 5 7 4 1 Failed 68 | . 3 4 6 2 3 . . . 5 5 2 8 5 17 8 Catastrophic 23 | . 1 3 3 . . . . . 1 . . 3 4 3 5 Database Lockouts . | . . . . . . . . . . . . . . . . Manual 81 | . 7 8 8 6 . . . . 8 9 5 11 7 9 3 Terminals 105 | . 9 9 8 6 3 1 1 . 12 11 5 13 10 14 3 Fabricators 1 | . . . . . . . . . . . 1 . . . . Repair Stations 13 | . . . . 1 . . . . . . . . 2 4 6 Recycling Units . | . . . . . . . . . . . . . . . . Scanalyzers 3 | . . 3 . . . . . . . . . . . . . Garrison Access 3 | . . . . . . . . . . . . . . 3 . Terminal Hacks 26 | . 3 2 . 3 . 1 1 . 4 5 2 1 3 1 . Robot Analysis 5 | . . . . . . . . . . 4 1 . . . . Prototype ID Bank 1 | . 1 . . . . . . . . . . . . . . Open Door 3 | . . . . . . 1 . . . . . . 2 . . Open DSF 1 | . . . . . . . 1 . . . . . . . . Level Access Points 6 | . 1 1 . 1 . . . . 1 1 1 . . . . Branch Access Points 2 | . . 1 . . . . . . 1 . . . . . . Terminal Index 1 | . . . . . . . . . 1 . . . . . . Zone Layout 7 | . 1 . . 2 . . . . 1 . . 1 1 1 . Fabricator Hacks . | . . . . . . . . . . . . . . . . Repair Station Hacks 1 | . . . . . . . . . . . . . . . 1 Refit 1 | . . . . . . . . . . . . . . . 1 Recycling Unit Hacks . | . . . . . . . . . . . . . . . . Scanalyzer 3 | . . 3 . . . . . . . . . . . . . Retrieve Study 3 | . . 3 . . . . . . . . . . . . . Garrison Access Hacks 1 | . . . . . . . . . . . . . . 1 . Seal Access 1 | . . . . . . . . . . . . . . 1 . Unauthorized Hacks 24 | . 3 3 2 2 . . . . 3 1 2 2 4 2 . Terminals 19 | . 3 3 2 1 . . . . 3 1 1 2 2 1 . Track 2 | . 1 . . . . . . . 1 . . . . . . Assimilate 1 | . . . . . . . . . . . . . 1 . . Botnet 16 | . 2 3 2 1 . . . . 2 1 1 2 1 1 . Fabricators 1 | . . . . . . . . . . . 1 . . . . Overload 1 | . . . . . . . . . . . 1 . . . . Repair Stations 4 | . . . . 1 . . . . . . . . 2 1 . Patch 4 | . . . . 1 . . . . . . . . 2 1 . Recycling Units . | . . . . . . . . . . . . . . . . Scanalyzers . | . . . . . . . . . . . . . . . . Garrison Access . | . . . . . . . . . . . . . . . . Data Cores Recovered 2 | . . . . 1 . . . . . . . . . 1 . Used . | . . . . . . . . . . . . . . . . Hacking Detections 39 | . 2 3 3 2 1 . . . 3 3 2 3 4 8 5 Full Trace Events 21 | . . 1 2 1 1 . . . 3 . 2 2 1 4 4 Feedback Events 4 | . . . . . 1 . . . . . 2 . . 1 . Corruption 2 | . . . . . 1 . . . . . . . . 1 . Hackware Fried 2 | . . . . . . . . . . . 2 . . . . Feedback Blocked . | . . . . . . . . . . . . . . . . Robot Schematics Acquired 1 | . . . . . . . . . . . . . 1 . . Robots Built . | . . . . . . . . . . . . . . . . Authchips . | . . . . . . . . . . . . . . . . Time . | . . . . . . . . . . . . . . . . Total Robot Build Rating . | . . . . . . . . . . . . . . . . Part Schematics Acquired 7 | . . . . . . . . . . . . . 7 . . Parts Built . | . . . . . . . . . . . . . . . . Authchips . | . . . . . . . . . . . . . . . . Time . | . . . . . . . . . . . . . . . . Total Part Build Rating . | . . . . . . . . . . . . . . . . Part Studies Acquired 3 | . . 3 . . . . . . . . . . . . . Parts Repaired . | . . . . . . . . . . . . . . . . Time . | . . . . . . . . . . . . . . . . Parts Recycled . | . . . . . . . . . . . . . . . . Recycled Matter . | . . . . . . . . . . . . . . . . Retrieved Matter . | . . . . . . . . . . . . . . . . Retrieved Components . | . . . . . . . . . . . . . . . . Parts Scanalyzed . | . . . . . . . . . . . . . . . . Part Schematics Acquired . | . . . . . . . . . . . . . . . . Parts Damaged . | . . . . . . . . . . . . . . . . Bothacking | -11 -10 -9 -8 -7 -6 -6 -5 -5 -4 -3 -2 -2 -2 -1 -1 ------------ Run | Yrd Mat Mat Mat Fac Fac Ext Fac DSF Fac Res Res Tes Sec Acc Com Used RIF Installer . | . . . . . . . . . . . . . . . . Robots Hacked . | . . . . . . . . . . . . . . . . Non-combat . | . . . . . . . . . . . . . . . . Combat . | . . . . . . . . . . . . . . . . Robot Hacks Applied . | . . . . . . . . . . . . . . . . Relay Couplers Released . | . . . . . . . . . . . . . . . . Fabnet Peak Effective % . | . . . . . . . . . . . . . . . . Robots Rewired . | . . . . . . . . . . . . . . . . Allies Hacked . | . . . . . . . . . . . . . . . . Hacks Repelled . | . . . . . . . . . . . . . . . . Allies | -11 -10 -9 -8 -7 -6 -6 -5 -5 -4 -3 -2 -2 -2 -1 -1 -------- Run | Yrd Mat Mat Mat Fac Fac Ext Fac DSF Fac Res Res Tes Sec Acc Com Total Allies 1 | . . . . . . . . . . . . . 1 . . Largest Group 1 | . . . . . . . . . . . . . 1 . . Highest-Rated Group 23 | . . . . . . . . . . . . . 23 . . Highest-Rated Ally 23 | . . . . . . . . . . . . . 23 . . Total Orders 2 | . . . . . . . . . . . . . . 2 . EXPLORE 2 | . . . . . . . . . . . . . . 2 . Ally Attacks . | . . . . . . . . . . . . . . . . Total Damage . | . . . . . . . . . . . . . . . . Kills . | . . . . . . . . . . . . . . . . Allies Corrupted . | . . . . . . . . . . . . . . . . Allies Melted . | . . . . . . . . . . . . . . . . Intel | -11 -10 -9 -8 -7 -6 -6 -5 -5 -4 -3 -2 -2 -2 -1 -1 ------- Run | Yrd Mat Mat Mat Fac Fac Ext Fac DSF Fac Res Res Tes Sec Acc Com Active Infowar (turns) 1100 | . . . . 108 44 31 12 44 62 101 90 112 180 220 96 Optics 815 | . . . . . . . 6 44 62 101 90 112 180 220 . Sensors 830 | . . . . 108 44 27 . . 28 101 90 112 180 140 . Terrain 124 | . . . . . . . . . . . 61 63 . . . Structural 671 | . . . . . 22 31 12 44 33 52 23 77 180 197 . ECM 96 | . . . . . . . . . . . . . . . 96 Robot Analysis Total 5 | . . . . . . . . . . 4 1 . . . . Derelict Logs Recovered . | . . . . . . . . . . . . . . . . Drone Launches 3 | . . . . . . . . . . . . . . 3 . Drone Recoveries . | . . . . . . . . . . . . . . . . Exploration | -11 -10 -9 -8 -7 -6 -6 -5 -5 -4 -3 -2 -2 -2 -1 -1 ------------- Run | Yrd Mat Mat Mat Fac Fac Ext Fac DSF Fac Res Res Tes Sec Acc Com Turns Passed 1599 | 19 42 143 105 132 44 31 12 44 62 101 90 112 180 222 260 Spaces Moved 3820 | 20 82 175 235 312 81 95 23 87 192 293 198 324 513 741 449 Core 596 | 20 82 53 . . . . . . . . . . . 7 434 Treads . | . . . . . . . . . . . . . . . . Legs 2 | . . . . . . . . . . . . . . . 2 Wheels . | . . . . . . . . . . . . . . . . Hover 13 | . . . . . . . . . . . . . . . 13 Flight 3209 | . . 122 235 312 81 95 23 87 192 293 198 324 513 734 . Fastest Speed 15 | 50 50 32 30 32 32 32 32 26 24 28 25 21 18 15 50 Average Speed 29 | 82 50 40 31 32 32 32 32 27 25 28 31 22 20 18 53 Slowest Speed 160 | 100 50 50 34 32 32 32 32 32 28 34 35 25 21 50 160 Overloaded Moves 29 | . . . . . . . . . . . . . 29 . . Propulsion Burnouts . | . . . . . . . . . . . . . . . . Robots Hopped 74 | . . 10 16 4 . . . . 2 5 8 . 16 13 . Potential Cave-ins . | . . . . . . . . . . . . . . . . Cave-ins Triggered . | . . . . . . . . . . . . . . . . Exploration Rate (%) 27 | 3 35 38 33 14 3 25 1 72 14 22 14 57 55 35 13 Regions Visited 15 Branch Regions 4 Pre-discovered Areas . | . . . . . . . . . . . . . . . . Known Exits Taken 10 | . 1 1 . 1 1 1 1 . 1 1 1 . 1 . . Unknown Exits Taken 4 | 1 . . 1 . . . . . . . . 1 . 1 . Scrap Searched . | . . . . . . . . . . . . . . . . Spaces Dug 38 | . . 1 3 3 3 . 1 . 2 4 5 3 3 10 . Terrain Destroyed 40 | . . 1 3 3 3 . 1 . 2 4 5 3 3 12 . Melee 35 | . . 1 3 3 3 . 1 . 2 4 5 3 3 7 . Projectile 5 | . . . . . . . . . . . . . . 5 . AOE . | . . . . . . . . . . . . . . . . Terrain Rammed . | . . . . . . . . . . . . . . . . Walls Destroyed . | . . . . . . . . . . . . . . . . Machines Disabled . | . . . . . . . . . . . . . . . . Actions | -11 -10 -9 -8 -7 -6 -6 -5 -5 -4 -3 -2 -2 -2 -1 -1 --------- Run | Yrd Mat Mat Mat Fac Fac Ext Fac DSF Fac Res Res Tes Sec Acc Com Total 3985 | 21 82 196 232 323 91 94 25 104 198 295 207 347 533 772 465 Wait 18 | . . 3 . . 1 . . 2 1 . 6 . . 2 3 Move 3671 | 19 81 157 208 303 80 94 23 86 187 282 183 323 482 714 449 Hop 61 | . . 7 10 4 . . . . 2 5 6 . 14 13 . Pick Up 9 | . . . . 1 1 . . 4 . . 1 2 . . . Fast Attach 66 | 2 . 7 3 5 3 . 1 6 2 1 2 9 13 7 5 Attach 12 | . . 2 . . . . . 1 1 1 3 . . 3 1 Detach 9 | . 1 1 . . . . . . 1 . . 1 . 4 1 Swap 7 | . . . . . . . . 2 1 . . 3 . 1 . Drop 17 | . . . 1 1 2 . . 3 1 . . 2 2 4 1 Fire 28 | . . 18 . . . . . . . . . . . 9 1 Melee 76 | . . 1 10 9 4 . 1 . 2 6 6 7 15 15 . Ram 3 | . . . . . . . . . . . . . . . 3 Kick 1 | . . . . . . . . . . . . . . . 1 Crush . | . . . . . . . . . . . . . . . . Escape Stasis 7 | . . . . . . . . . . . . . 7 . . Rewire . | . . . . . . . . . . . . . . . . Trap . | . . . . . . . . . . . . . . . . Miscellaneous . | . . . . . . . . . . . . . . . . Route ------- -11/Scrapyard -10/Materials (discovered 3 exits: *Mat x3) -9/Materials (discovered 4 exits: *Mat x3 / Min) -8/Materials -7/Factory (discovered 5 exits: *Fac x4 / [*Low]) -6/Factory -6/Extension -5/Factory -5/DSF -4/Factory (discovered 7 exits: *Res x4 / Upp x2 / Arm) -3/Research (discovered 3 exits: *Res x3) -2/Research (discovered 4 exits: Acc x3 / *Tes) -2/Testing (discovered 2 exits: *Sec / [*Frg]) -2/Section 7 -1/Access -1/Command History --------- Turn | Location | Event 9 | -11/Scrapyard | Discovered new exit (range 12) 20 | -11/Scrapyard | Entered Materials 49 | -10/Materials | Identified exit to Materials 62 | -10/Materials | Entered another Materials area 62 | -9/Materials | Evolved 2 slots: Propulsion x2 179 | -9/Materials | Identified exit to Materials 179 | -9/Materials | Identified exit to Mines 183 | -9/Materials | Destroyed 8 combat bots 205 | -9/Materials | Entered another Materials area 205 | -8/Materials | Evolved 2 slots: Utility x2 301 | -8/Materials | Discovered new exit (range 10) 310 | -8/Materials | Entered Factory 310 | -7/Factory | Evolved 2 slots: Propulsion x1, Utility x1 329 | -7/Factory | Identified exit to Factory 418 | -7/Factory | Discovered new exit (range 16) 427 | -7/Factory | Build established: Sprinter 442 | -7/Factory | Entered another Factory area 442 | -6/Factory | Evolved 2 slots: Propulsion x1, Utility x1 477 | -6/Factory | Discovered new exit (range 13) 485 | -6/Factory | Identified exit to Extension 486 | -6/Factory | Entered Extension 511 | -6/Extension | Spotted B-75 Beast 512 | -6/Extension | Spotted B-75 Beast 516 | -6/Extension | Discovered new exit (range 3) 516 | -6/Extension | Identified exit to Factory 517 | -6/Extension | Entered Factory 517 | -5/Factory | Evolved 2 slots: Power x1, Propulsion x1 529 | -5/Factory | Identified exit to DSF 529 | -5/Factory | Entered DSF 544 | -5/DSF | Lost 3 parts (1p2u) 555 | -5/DSF | Additional patrols routed to DSF 567 | -5/DSF | Discovered new exit (range 22) 573 | -5/DSF | Entered Factory 573 | -4/Factory | Evolved 2 slots: Propulsion x1, Utility x1 593 | -4/Factory | Found Prototype Processor 593 | -4/Factory | Identified Exp. Signal Interpreter 615 | -4/Factory | Identified exit to Upper Caves 615 | -4/Factory | Identified exit to Armory 616 | -4/Factory | Identified exit to Research 623 | -4/Factory | Spotted B-86 Titan 635 | -4/Factory | Entered Research 635 | -3/Research | Evolved 2 slots: Propulsion x1, Utility x1 686 | -3/Research | Spotted B-86 Titan 695 | -3/Research | Identified exit to Research 717 | -3/Research | Spotted B-86 Titan 718 | -3/Research | Spotted B-86 Titan 736 | -3/Research | Entered another Research area 736 | -2/Research | Evolved 2 slots: Propulsion x1, Utility x1 794 | -2/Research | Identified exit to Access 794 | -2/Research | Adv. Hacking Suite fried by hacking feedback 794 | -2/Research | Adv. Hacking Suite fried by hacking feedback 820 | -2/Research | Discovered new exit (range 20) 825 | -2/Research | Lost 5 parts (1n4u) 825 | -2/Research | Identified exit to Testing 826 | -2/Research | Entered Testing 848 | -2/Testing | Found Prototype Device 848 | -2/Testing | Identified Thermal Barrier 868 | -2/Testing | Unstable Terrabomb Derivative detonated 922 | -2/Testing | Spotted Fortress 937 | -2/Testing | Discovered new exit (range 5) 937 | -2/Testing | Discovered new exit (range 6) 938 | -2/Testing | Entered Section 7 958 | -2/Section 7 | Scanned by Researcher 969 | -2/Section 7 | Found Alien Artifact 969 | -2/Section 7 | Identified Integrity Redistributor 969 | -2/Section 7 | Used Integrity Redistributor, redistributed integrity from core (-104) 980 | -2/Section 7 | Spotted B-90 Cyclops 983 | -2/Section 7 | Spotted S7 Guard 988 | -2/Section 7 | Found Alien Artifact 988 | -2/Section 7 | Identified Core Regenerator 988 | -2/Section 7 | Used Core Regenerator, restored core integrity (+222) 1012 | -2/Section 7 | Spotted Executioner 1013 | -2/Section 7 | Spotted Executioner 1019 | -2/Section 7 | Spotted B-99 Colossus 1038 | -2/Section 7 | Found Alien Artifact 1038 | -2/Section 7 | Identified Integrated Reactor 1038 | -2/Section 7 | Installed Integrated Reactor, increased core energy generation (+10) 1039 | -2/Section 7 | Found Integrated Reactor 1039 | -2/Section 7 | Installed Integrated Reactor, increased core energy generation (+10) 1041 | -2/Section 7 | Found Integrated Reactor 1041 | -2/Section 7 | Installed Integrated Reactor, increased core energy generation (+10) 1051 | -2/Section 7 | Found Alien Artifact 1051 | -2/Section 7 | Identified LRC Energy Well 1051 | -2/Section 7 | Installed LRC Energy Well, increased energy storage capacity (+250) 1053 | -2/Section 7 | Found Alien Artifact 1053 | -2/Section 7 | Identified LRC Armor 1053 | -2/Section 7 | Installed LRC Armor, increased core integrity (+250) 1073 | -2/Section 7 | Found Alien Artifact 1073 | -2/Section 7 | Identified Integrated Dissipator 1073 | -2/Section 7 | Installed Integrated Dissipator, increased core heat dissipation (+20) 1085 | -2/Section 7 | Spotted Alpha 7 1086 | -2/Section 7 | Spotted Alpha 7 1097 | -2/Section 7 | Found Prototype Hackware 1097 | -2/Section 7 | Identified Exp. Hacking Suite 1117 | -2/Section 7 | Discovered exit to Access (range 3) 1118 | -2/Section 7 | Entered Access 1118 | -1/Access | Evolved 2 slots: Propulsion x2 1148 | -1/Access | Spotted B-99 Colossus 1295 | -1/Access | Intercept squad dispatched 1299 | -1/Access | Spotted B-99 Colossus 1307 | -1/Access | Lost 4 parts (1n3u) 1324 | -1/Access | Spotted B-99 Colossus 1324 | -1/Access | Spotted B-99 Colossus 1326 | -1/Access | Spotted Tracker 1329 | -1/Access | Spotted Tracker 1339 | -1/Access | Discovered new exit (range 3) 1340 | -1/Access | Core integrity fell below 50% 1340 | -1/Access | Entered Command 1369 | -1/Command | Lost 14 parts (7n4u3w) 1390 | -1/Command | Released all parts (6) 1420 | -1/Command | Core integrity fell below 20% 1600 | -1/Command | Destroyed by P-80 Master with Gamma Rifle Last Messages --------------- 01459_ Penetrated by Slug. 01460_ Slug penetrates H-88 Terminator. 01504_ Acquired ECM Suite. 01515_ H-88 Terminator deploys Drone. 01515_ Drone sends a signal. 01515_ H-88 Terminator retrieves Drone. 01519_ Slug penetrates Wall. 01519_ Penetrated by Slug. 01529_ Slug penetrates Wall. 01564_ Acquired 2 matter. 01565_ Acquired 5 matter. 01568_ Acquired 4 matter. 01578_ Acquired Imp. Gyrokinetic Inverter. 01589_ ALERT: Potential suspicious activity detected, Programmers report to Command Zone 8T. 01595_ Connecting with Terminal... 01595_ ALERT: Suspicious activity at Terminal C012. Dispatching Investigation squad. 01598_ Kicked P-80 Master out of the way. Map ----- +----------------------------------------------------+ | ?????????????????????????????????????????????????? | | ?????????????????????????????????????????????????? | | ?????????????????????????????????????????????????? | | ?????????????????????????????????????????????????? | | ?????????????????????????????????????????????????? | | ?????????????????????????????????????????????????? | | ?????????????????????????????????????????????????? | | ?????????????????????????????????????????????????? | | ?????????????????????????????????????????????????? | | ?????????????????????????????????????????????????? | | ??????????????????????? ?????????????????????? | | ??????????????????????# #????????????????????? | | ??????????????????????# R#????????????????????? | | ??????????????????????# #????????????????????? | | ???????????????????#+## ###??????????????????? | | ???????????????????? w ??????????????????? | | ???????????????????? ???????????????????? | | ????????????????????? ???????????????????? | | ????????????????????? ????????????????????? | | ?????????????????????? ????????????????????? | | ??????????????????????# w #????????????????????? | | ??????????????????????# #????????????????????? | | ??????????????????????# #????????????????????? | | ??????????????????????# #????????????????????? | | ??????????????????????? k ?????????????????????? | | ????????????????#########@##########?????????????? | | ????????????????# p #?????????????? | | ????????????????# p #?????????????? | | ????????????????# """" #?????????????? | | ????????????????# """" " " #?????????????? | | ????????????????# k""""R "T" #?????????????? | | ????????????????# """" """ #?????????????? | | ????????????????# #?????????????? | | ????????????????# #?????????????? | | ????????????????#+##################?????????????? | | ????????????????# #???? #?????????????????????? | | ????????????????# #?? #?????????????????????? | | ??????????####### #? ??????????????????????? | | ??????????# # """" ???????????????????????? | | ??????????# + """" ???????????????????????? | | ??????????# # """" ???????????????????????? | | ??????????#!= #??""""????????????????????????? | | ??????????#[= #???? ???? ??????????????????? | | ??????????#= +?????? ??? ??????????????????? | | ??????????# #??????????? ??????????????????? | | ??????????# ### #??????????? ??????????????????? | | ??????????# #?# #??????????? ??????????????????? | | ??????????# #?# ?????????? ??????????????????? | | ??????????# ###+##########??? ??????????????????? | | ??????????# # #??# #????#####????????? | +----------------------------------------------------+ Best States ------------- Heat Dissipation 72 Coolant Potential 100 Energy Generation 73 Energy Capacity 830 Matter Stores 300 Matter Capacity 300 Sight Range 22 Robot Scan Range 18 Terrain Scan Range 14 Terrain Scan Density 10 ECM Strength 1 Corruption Containment 12 Corruption Block 20 Armor Coverage 750 Propulsion Shielding 66 Evasion (%) 66 Offensive Hacking 56 Defensive Hacking 10 Item Schematics ----------------- Com. Particle Reactor | -2/Section 7 | Archive Enh. Armored Heavy Treads | -2/Section 7 | Archive Gravity Flail | -2/Section 7 | Archive Adv. Gravity Neutralizer | -2/Section 7 | Archive Exp. Field Recycling Unit | -2/Section 7 | Archive Stealth Drone Bay | -2/Section 7 | Archive Cld. Q-thruster | -2/Section 7 | Archive Robot Schematics ------------------ P-80 Master | -2/Section 7 | Archive Fabricated ------------ Nothing Repaired ---------- Nothing Studied --------- VTOL Module | -9/Materials | Hacked Flight Unit | -9/Materials | Hacked Lgt. Ion Engine | -9/Materials | Hacked Alien Tech Used ----------------- Integrity Redistributor Core Regenerator Integrated Reactor LRC Energy Well LRC Armor Integrated Dissipator Achievements -------------- Tailor-made Challenges ------------ None Game ------ Seed WeightCryofiberTube Manual? 0 Play Time 00:50:40 Cumulative 657.3 hours Start 2025.11.14 @ 21:06:58 End 2025.11.14 @ 21:56:14 Sessions 1 Manual Loads 0 Difficulty Rogue Special Mode None Game No. 281 Rogue 281 Adventurer 0 Explorer 0 Win Type - Total 60 Types 31/4/9/3/6/1/0/3/0/3 Lore% 96 Gallery% 89 Achievement% 78 Wizard Run 0 Options --------- Layout 1 ASCII 0 Keyboard 0 Movement Numpad Keybinds 0 Fullscreen 1 Font 24/Smallcaps Map View 50x35 Zoom Use 0% Tactical HUD 1 Map Filters NONE Filters NONE Steam 1 RUN: da947e0b-ac24-4da7-9ecd-f97bd246a79d